{"text_format":"2","workbook":"xlsx","n_sheets":1,"sheets":["Telephelyek"],"not_rendered":{"charts":0,"images":0,"macros":0,"external_links":0,"defined_names":1,"comments":0,"pivot_tables":0},"unopened":[],"bounds":{"document_bytes":16777216,"sheet_cells":100000,"run_cost":"one","rows_first":2000,"rows_last":500,"rows_between":2000,"halvings":0,"cell_chars":16384,"cell_head_chars":4096},"cells_cut":0,"cells_raw":0,"read":"whole","date_system":"1900"}

{"sheet":"Telephelyek","index":0,"n_rows":110,"n_cols":10,"rows_kept":110,"cut":false,"hidden":false,"merged":[]}
[" helyrajzi szám","cím","megnevezés/felépítmény/részleg","kar","napelem típusa","napelem db","telepítés éve","m2","telepített teljesítmény (KW)","inverter típusa"]
["26013/1","Szeged, Kollégiumi út 11.","kollégium","Kollégium MK","Jinko 240P-60",48,2012,{"$f":"1.7*F2","v":81.599999999999994},12,"SMA Sunny Tripower12000TL"]
["26013/1","Szeged, Kollégiumi út 11.","kollégium","Kollégium MK","Jinko 240P-60",48,2012,81.599999999999994,12,"SMA Sunny Tripower 12000TL"]
["25851/5","Szeged, Vásárhelyi Pál u. 1.","Étkező","Kollégium Károlyi",null,43,2012,73.099999999999994,10,"SMA Sunny Tripower 10000TL-10"]
["25851/5","Szeged, Vásárhelyi Pál u. 1.","Étkező","Kollégium Károlyi",null,43,2012,73.099999999999994,10,"SMA Sunny Tripower 10000TL-10"]
["25851/5","Szeged, Vásárhelyi Pál u. 1.","Étkező","Kollégium Károlyi","Jinko 240P-60",60,2012,102,15,"SMA  Sunny Tripower 15000TL"]
["25851/5","Szeged, Kossuth Lajos sgt.74.","B épület teteje","Kollégium Károlyi","Jinko 240P-60",60,2012,102,15,"SMA  Sunny Tripower 15000TL"]
["25607","Szeged, Mars tér 7. ","oktatási épület, Dékáni Hivatal","MK","Amerisolar AS-6P30_250W",40,2015,68,10,"FRONIUS SYMO 10.0-3-M"]
["25607","Szeged, Mars tér 7. ","oktatási épület, Dékáni Hivatal","MK","Amerisolar AS-6P30_250W",40,2015,68,10,"FRONIUS SYMO 10.0-3-M"]
["25607","Szeged, Mars tér 7. ","oktatási épület, Dékáni Hivatal","MK","Amerisolar AS-6P30_250W",40,2015,68,10,"FRONIUS SYMO 10.0-3-M"]
["25562/6","Szeged, Kálvária sgt. 87/AA","Márton Áron szakkollégium","Kollégium Márton","Jinko 240P-60",41,2012,69.7,10,"SMA Sunny Tripower 10000TL-10"]
["25562/6","Szeged, Kálvária sgt. 87/AA","Márton Áron szakkollégium","Kollégium Márton","Jinko 240P-60",41,2012,69.7,10,"SMA Sunny Tripower 10000TL-10"]
["25562/6","Szeged, Kálvária sgt. 87/AA","Márton Áron szakkollégium","Kollégium Márton","Jinko 240P-60",41,2012,69.7,10,"SMA Sunny Tripower 10000TL-10"]
["25562/6","Szeged, Kálvária sgt. 87/AA","Márton Áron szakkollégium","Kollégium Márton","Jinko 240P-60",41,2012,69.7,10,"SMA Sunny Tripower 10000TL-10"]
["25562/6","Szeged, Kálvária sgt. 87/AA","Márton Áron szakkollégium","Kollégium Márton","Jinko 240P-60",42,2012,71.399999999999991,10,"SMA Sunny Tripower 10000TL-10"]
["25542","Szeged, Kálvária sgt 57. / Vásárhelyi Pál u. 30","a épület gyógyítás - sebészet","SZAKK"]
["25542","Szeged, Kálvária sgt 57. / Vásárhelyi Pál u. 30","c épület gyógyítás - 200 ágyas","SZAKK"]
["25542","Szeged, Kálvária sgt 57. / Vásárhelyi Pál u. 30","e épület gyógyítás - ideg-elemosztály","SZAKK"]
["25528/1","Szeged, Kátay u. 28/ Leányszállás köz 13","Neuropszichiátria","SZAKK","Amerisolar AS-6P30_250W",40,2015,{"$f":"1.7*F19","v":68},10,"FRONIUS SYMO 10.0-3-M"]
["25528/1","Szeged, Kátay u. 28/ Leányszállás köz 13","Neuropszichiátria","SZAKK","Amerisolar AS-6P30_250W",40,2015,68,10,"FRONIUS SYMO 10.0-3-M"]
["25528/1","Szeged, Kátay u. 28/ Leányszállás köz 13","Neuropszichiátria","SZAKK","Amerisolar AS-6P30_250W",40,2015,68,10,"FRONIUS SYMO 10.0-3-M"]
["25528/2","Szeged, Leányszállás köz 12.","Nővérszálló","SZAKK","Jinko 240P-60",48,2012,81.599999999999994,12,"SMA Sunny Tripower 12000TL"]
["25528/2","Szeged, Leányszállás köz 12.","Nővérszálló","SZAKK","Jinko 240P-60",48,2012,81.599999999999994,12,"SMA Sunny Tripower 12000TL"]
["25187","Szeged, Moszkvai krt 9.",null,"MK","Jinko 240P-60",108,2012,183.6,17,"SMA Sunny SB1700"]
["20353","Szeged, Topolya sor 2-4.","tornacsarnok, sporttelep","JGYPK",null,41,2012,69.7,10,"SMA  Sunny Tripower 10000TL"]
["20353","Szeged, Topolya sor 2-4.","tornacsarnok, sporttelep","JGYPK",null,41,2012,69.7,10,"SMA  Sunny Tripower 10000TL"]
["20353","Szeged, Topolya sor 2-4.","tornacsarnok, sporttelep","JGYPK",null,41,2012,69.7,10,"SMA  Sunny Tripower 10000TL"]
["20353","Szeged, Topolya sor 2-4.","tornacsarnok, sporttelep","JGYPK",null,41,2012,69.7,10,"SMA  Sunny Tripower 10000TL"]
["20353","Szeged, Topolya sor 2-4.","tornacsarnok, sporttelep","JGYPK",null,42,2012,71.399999999999991,10,"SMA  Sunny Tripower 10000TL"]
["20323/1","Szeged, Hattyas u. 6-8.","oktatási épület 4-es épület (HU/25) JGYPK","JGYPK","Jinko 240P-60",41,2012,69.7,10,"SMA Sunny Tripower 10000TL-10"]
["20323/1","Szeged, Hattyas u. 6-8.","oktatási épület 4-es épület (HU/25) JGYPK","JGYPK","Jinko 240P-60",41,2012,69.7,10,"SMA Sunny Tripower 10000TL-10"]
["20323/1","Szeged, Hattyas u. 6-8.","oktatási épület 4-es (HU/25) JGYPK","JGYPK","Jinko 240P-60",41,2012,69.7,10,"SMA Sunny Tripower 10000TL-10"]
["20323/1","Szeged, Hattyas u. 6-8.","oktatási épület 6-os (HF 1) JGYPK","JGYPK","Jinko 240P-60",42,2012,71.399999999999991,10,"SMA Sunny Tripower 10000TL-10"]
["20323/1","Szeged, Hattyas u. 6-8.","oktatási épület 6-os (HF 1) JGYPK","JGYPK","Jinko 240P-60",41,2012,69.7,10,"SMA Sunny Tripower 10000TL-10"]
["20294/1","Szeged, Semmelweis u. 6 ","Új Klinika (410 ágyas)","SZAKK","Amerisolar AS-6P30_250W",40,2015,68,10,"FRONIUS SYMO 10.0-3-M"]
["20294/1","Szeged, Semmelweis u. 6 ","Új Klinika (410 ágyas)","SZAKK","Amerisolar AS-6P30_250W",40,2015,68,10,"FRONIUS SYMO 10.0-3-M"]
["20294/1","Szeged, Semmelweis u. 6 ","Új Klinika (410 ágyas)","SZAKK","Amerisolar AS-6P30_250W",40,2015,68,10,"FRONIUS SYMO 10.0-3-M"]
["20294/1","Szeged, Semmelweis u. 6 ","Laboratóriumi Medicína Intézet","SZAKK","Jinko 240P-60",62,2012,105.39999999999999,15,"SMA  Sunny Tripower 15000TL"]
["20294/1","Szeged, Semmelweis u. 6 ","Laboratóriumi Medicína Intézet","SZAKK","Jinko 240P-60",42,2012,71.399999999999991,10,"SMA Sunny Tripower 10000TL-10"]
["20294/1","Szeged, Semmelweis u. 6 ","Laboratóriumi Medicína Intézet","SZAKK","Jinko 240P-60",42,2012,71.399999999999991,10,"SMA Sunny Tripower 10000TL-10"]
["20294/1","Szeged, Semmelweis u. 6 ","Nukleáris Medicína Intézet Izotólabor","SZAKK","Jinko 240P-60",52,2012,88.399999999999991,12,"SMA  Sunny Tripower 12000"]
["20294/1","Szeged, Semmelweis u. 6 ","Egyetemi Gyógyszertár","SZAKK","Jinko JKM240P-60",64,2012,108.8,15.36,"SMA  Sunny Tripower 15000TL"]
["20294/1","Szeged, Semmelweis u. 8.","központi  anyagraktár","SZAKK","Amerisolar AS-6P30_250W",80,2015,136,20,"FRONIUS SYMO 20.0-3-M"]
["20294/1","Szeged, Semmelweis u. 8.","központi  anyagraktár","SZAKK","Amerisolar AS-6P30_250W",40,2015,68,10,"FRONIUS SYMO 10.0-3-M"]
["20294/1","Szeged, Semmelweis u. 6 ","Pathológia","SZAKK","Jinko JKM240P-60",34,2012,57.8,8.16,"SMA  Sunny Tripower 8000TL"]
["10874","Szeged, Szilléri sgt. 12.","oktatási épület","JGYPK","Amerisolar AS-6P30_250W",40,2015,68,10,"FRONIUS SYMO 10.0-3-M"]
["10874","Szeged, Szilléri sgt. 12.","oktatási épület","JGYPK","Amerisolar AS-6P30_250W",80,2015,136,20,"FRONIUS SYMO 20.0-3-M"]
["3911","Szeged, Tisza Lajos krt. 54.","Jogi kar központi épület","ÁJTK","Amerisolar AS-6P30_250W",40,2015,68,10,"FRONIUS SYMO 10.0-3-M"]
["3724","Szeged, Semmelweis u 4.","Semmelweis Ignác kollégium GYTK","Kollégium Semmelweis GYTK","Amerisolar AS-6P30_250W",80,2015,136,20,"FRONIUS SYMO 20.0-3-M"]
["3724","Szeged, Semmelweis u 4.","Semmelweis Ignác kollégium GYTK","Kollégium Semmelweis GYTK","Amerisolar AS-6P30_250W",40,2015,68,10,"FRONIUS SYMO 10.0-3-M"]
["3719","Szeged, Tisza Lajos krt. 107.","Szent-Györgyi Albert Klinikai Központ, Gazdasági Igazgatóság","SZAKK","Amerisolar AS-6P30_250W",40,2015,{"$f":"1.7*F51","v":68},10,"FRONIUS SYMO 10.0-3-M"]
["3719","Szeged, Tisza Lajos krt. 107.","Szent-Györgyi Albert Klinikai Központ, Gazdasági Igazgatóság","SZAKK","Amerisolar AS-6P30_250W",40,2015,68,10,"FRONIUS SYMO 10.0-3-M"]
["3719","Szeged, Tisza Lajos krt. 107.","Szent-Györgyi Albert Klinikai Központ, Gazdasági Igazgatóság","SZAKK","Amerisolar AS-6P30_250W",40,2015,68,10,"FRONIUS SYMO 10.0-3-M"]
["3716","Szeged, Tisza Lajos krt. 103.","Irinyi épület","TTIK","Amerisolar AS-6P30_250W",40,2015,68,10,"FRONIUS SYMO 10.0-3-M"]
["3716","Szeged, Tisza Lajos krt. 103.","Irinyi épület","TTIK","Amerisolar AS-6P30_250W",40,2015,68,10,"FRONIUS SYMO 10.0-3-M"]
["3716","Szeged, Tisza Lajos krt. 103.","Irinyi épület","TTIK","Amerisolar AS-6P30_250W",40,2015,68,10,"FRONIUS SYMO 10.0-3-M"]
["3715","Szeged, Boldogasszony sgt 6.","oktatási épület, Dékáni Hivatal","JGYPK","Amerisolar AS-6P30_250W",80,2015,136,20,"FRONIUS SYMO 20.0-3-M"]
["3713","Szeged, Boldogasszony sgt 8","Gyakorló Általános Iskola","JGYPK","Amerisolar AS-6P30_250W",40,2015,68,10,"FRONIUS SYMO 10.0-3-M"]
["3713","Szeged, Boldogasszony sgt 8","Gyakorló Általános Iskola","JGYPK","Amerisolar AS-6P30_250W",40,2015,68,10,"FRONIUS SYMO 10.0-3-M"]
["3713","Szeged, Boldogasszony sgt 8","Gyakorló Általános Iskola","JGYPK","Amerisolar AS-6P30_250W",40,2015,68,10,"FRONIUS SYMO 10.0-3-M"]
["3713","Szeged, Semmelweis u 5.","Teleki Blanka kollégium","Kollégium Teleki JGYPK","Jinko 240P-60",41,2012,69.7,10,"SMA Sunny Tripower 10000TL-10"]
["3713","Szeged, Semmelweis u 5.","Teleki Blanka kollégium","Kollégium Teleki JGYPK","Jinko 240P-60",41,2012,69.7,10,"SMA Sunny Tripower 10000TL-10"]
["3713","Szeged, Semmelweis u 5.","Teleki Blanka kollégium","Kollégium Teleki JGYPK","Jinko 240P-60",41,2012,69.7,10,"SMA Sunny Tripower 10000TL-10"]
["3713","Szeged, Semmelweis u 5.","Teleki Blanka kollégium","Kollégium Teleki JGYPK","Jinko 240P-60",42,2012,71.399999999999991,10,"SMA Sunny Tripower 10000TL-10"]
["3713","Szeged, Semmelweis u 5.","Teleki Blanka kollégium","Kollégium Teleki JGYPK","Jinko 240P-60",41,2012,69.7,10,"SMA Sunny Tripower 10000TL-10"]
["3700","Szeged. Liliom u. 10.","vendégház","GMF","Jinko 240P-60",16,2012,27.2,3.8,"SMA Sunny Tripower 8000TL"]
["3693","Szeged, Semmelweis u 7-9.","id. Jancsó Miklós kollégium","Kollégium Jancsó ÁOK","Jinko 240P-60",{"$f":"156-F68-F69","v":40},2012,68,{"$f":"38/156*F67","v":9.7435897435897427},"SMA Sunny Tripower 8000TL"]
["3693","Szeged, Semmelweis u 7-9.","id. Jancsó Miklós kollégium","Kollégium Jancsó ÁOK","Jinko 240P-60",63,2012,107.1,{"$f":"38/156*F68","v":15.346153846153847},"SMA Sunny Tripower 15000TL"]
["3693","Szeged, Semmelweis u 7-9.","id. Jancsó Miklós kollégium","Kollégium Jancsó ÁOK","Jinko 240P-60",53,2012,90.1,{"$f":"38/156*F69","v":12.910256410256411},"SMA Sunny Tripower 15000TL"]
["3568","Szeged, Batthyány u 5.","Óvoda","JGYPK","Jinko 240P-60",57,2012,96.899999999999991,12,"SMA Sunny Tripower 12000TL"]
["3487","Szeged, Ady tér 10.","József Attila Tanulmányi és Információs Központ","TIK","Jinko 240P-60",41,2012,69.7,10,"SMA Sunny Tripower 10000TL-10"]
["3487","Szeged, Ady tér 10.","József Attila Tanulmányi és Információs Központ","TIK","Jinko 240P-60",41,2012,69.7,10,"SMA Sunny Tripower 10000TL-10"]
["3487","Szeged, Ady tér 10.","József Attila Tanulmányi és Információs Központ","TIK","Jinko 240P-60",41,2012,69.7,10,"SMA Sunny Tripower 10000TL-10"]
["3487","Szeged, Ady tér 10.","József Attila Tanulmányi és Információs Központ","TIK","Jinko 240P-60",41,2012,69.7,10,"SMA Sunny Tripower 10000TL-10"]
["3487","Szeged, Ady tér 10.","József Attila Tanulmányi és Információs Központ","TIK","Jinko 240P-60",42,2012,71.399999999999991,10,"SMA Sunny Tripower 10000TL-10"]
["3487","Szeged, Ady tér 10.","József Attila Tanulmányi és Információs Központ","TIK","Amerisolar AS-6P30_250W",40,2015,68,10,"FRONIUS SYMO 10.0-3-M"]
["3487","Szeged, Ady tér 10.","József Attila Tanulmányi és Információs Központ","TIK","Amerisolar AS-6P30_250W",80,2015,136,20,"FRONIUS SYMO 20.0-3-M"]
["3486","Szeged, Egyetem u 2.","Bölcsészettudományi Kar","BTK - TTIK Földrajzi és Földtudományi Intézet","Amerisolar AS-6P30_250W",40,2015,68,10,"FRONUS SYMO 10..0-3-M"]
["3486","Szeged, Egyetem u 2.","Bölcsészettudományi Kar","BTK - TTIK Földrajzi és Földtudományi Intézet","Amerisolar AS-6P30_250W",80,2015,136,20,"FRONUS SYMO 20.0-3-M"]
["3482","Szeged, Petőfi Sándor sgt. 32-34.","oktatási épület","BTK","Jinko 240P-60",61,2012,103.7,15,"SMA Sunny Tripower 15000TL"]
["3435","Szeged, Tisza L. krt. 79-81.","oktatási épület (79.)","ZMK","Amerisolar AS-6P30_250W",40,2015,68,10,"FRONIUS SYMO 10.0-3-M"]
["3435","Szeged, Tisza L. krt. 79-81.","oktatási épület (79.)","ZMK","Amerisolar AS-6P30_250W",40,2015,68,10,"FRONIUS SYMO 10.0-3-M"]
["3435","Szeged, Tisza L. krt. 79-81.","oktatási épület (79.)","ZMK","Amerisolar AS-6P30_250W",40,2015,{"$f":"1.7*F83","v":68},10,"FRONIUS SYMO 10.0-3-M"]
["3373","Szeged, Béke u 11-13.","Béke utcai kollégium","Kollégium ETSZK","Amerisolar AS-6P30_250W",40,2015,68,10,"FRONIUS SYMO 10.0-3-M"]
["3373","Szeged, Béke u 11-13.","Béke utcai kollégium","Kollégium ETSZK","Amerisolar AS-6P30_250W",40,2015,68,10,"FRONIUS SYMO 10.0-3-M"]
["3373","Szeged, Béke u 11-13.","Béke utcai kollégium","Kollégium ETSZK","Amerisolar AS-6P30_250W",40,2015,68,10,"FRONIUS SYMO 10.0-3-M"]
["2106","Szeged, Lövölde u 42.","fitotron (főépület)","FÜVÉSZKERT","Amerisolar AS-6P30_250W",80,2015,136,20,"FRONIUS SYMO 20.0-3-M"]
["2106","Szeged, Lövölde u 42.","szaporítóház","FÜVÉSZKERT","Amerisolar AS-6P30_250W",40,2015,68,10,"FRONIUS SYMO 10.0-3-M"]
["1732","Szeged, Közép fasor 52.","Biológia Intézet","TTIK","Jinko JKM250P-60",46,2013,78.2,{"$f":"0.25*F89","v":11.5},"SMA Sunny Tripower 12000TL"]
["493","Szeged, Fürj u 51.","főépület","Kollégium Hermann","Jinko 240P-60",40,2012,68,10,"SMA Sunny Tripower 10000TL-10"]
["493","Szeged, Fürj u 51.","melléképület (garázs)","Kollégium Hermann","Jinko 240P-60",40,2012,68,10,"SMA Sunny Tripower 10000TL-10"]
["278","Szeged, Bal fasor 39.","Madzsar József kollégium és oktatási épület","ETSZK","Amerisolar AS-6P30_250W",80,2015,136,{"$f":"F92*250/1000","v":20},"FRONUS SYMO"]
["278","Szeged, Bal fasor 39.","Madzsar József kollégium és oktatási épület","ETSZK","Amerisolar AS-6P30_250W",40,2015,68,{"$f":"F93*250/1000","v":10},"FRONIUS SYMO 10.0-3-M"]
["240","Szeged, Közép fasor 33.","Móra Ferenc  Szakkollégium","Kollégium Móra",null,41,2012,69.7,10,"SMA Sunny Tripower 10000TL-10"]
["240","Szeged, Közép fasor 33.","Móra Ferenc  Szakkollégium","Kollégium Móra",null,41,2012,69.7,10,"SMA Sunny Tripower 10000TL-10"]
["240","Szeged, Közép fasor 33.","Móra Ferenc  Szakkollégium","Kollégium Móra",null,41,2012,69.7,10,"SMA Sunny Tripower 10000TL-10"]
["240","Szeged, Közép fasor 33.","Móra Ferenc  Szakkollégium","Kollégium Móra",null,41,2012,69.7,10,"SMA Sunny Tripower 10000TL-10"]
["240","Szeged, Közép fasor 33.","Móra Ferenc  Szakkollégium","Kollégium Móra",null,42,2012,71.399999999999991,10,"SMA Sunny Tripower 10000TL-10"]
[233,"Szeged, Temesvári krt. 31.","oktatási épület","ETSZK","Amerisolar AS-6P30_250W",40,2015,68,10,"FRONIUS SYMO 10.0-3-M"]
[233,"Szeged, Temesvári krt. 31.","oktatási épület","ETSZK","Amerisolar AS-6P30_250W",80,2015,136,20,"FRONIUS SYMO 20.0-3-M"]
["01392/6","Szeged, Budapesti út 7.","lakóépület diáklakások 43. épület","Kollégium Öthalom","Jinko 240P-60",61,null,103.7,15,"SMA  Sunny Tripower 15000TL"]
["01392/6","Szeged, Budapesti út 7.","lakóépület diáklakások 43. épület","Kollégium Öthalom","Jinko 240P-60",41,null,69.7,10,"SMA  Sunny Tripower 10000TL"]
["01392/6","Szeged, Budapesti út 7.","lakóépület diáklakások  44. épület","Kollégium Öthalom","Jinko 240P-60",61,null,103.7,15,"SMA  Sunny Tripower 15000TL"]
["01392/6","Szeged, Budapesti út 7.","lakóépület diáklakások  44. épület","Kollégium Öthalom","Jinko 240P-60",41,null,69.7,10,"SMA  Sunny Tripower 10000TL"]
[12774,"Hódmezővásárhely, Petőfi út. 12","I. kollégium, menza, mosoda","MGK","Jinko 240P-60",40,2012,68,10.8,"SMA Sunny Tripower 10000TL-10"]
[12774,"Hódmezővásárhely, Petőfi út. 12","I. kollégium, menza, mosoda","MGK","Jinko 240P-60",41,2012,{"$f":"1.7*F106","v":69.7},10.8,"SMA Sunny Tripower 10000TL-10"]
[12774,"Hódmezővásárhely, Petőfi út. 12","I. kollégium, menza, mosoda","MGK","Jinko 240P-60",41,2012,69.7,10.8,"SMA Sunny Tripower 10000TL-10"]
[12774,"Hódmezővásárhely, Andrássy út 15-17.","Konditerem","MGK","Jinko 240P-60",42,2012,71.399999999999991,9.6,"SMA Sunny Tripower 10000TL-10"]
[12774,"Hódmezővásárhely, Andrássy út 15-17.","Konditerem","MGK","Jinko 240P-60",42,2012,71.399999999999991,9.6,"SMA Sunny Tripower 10000TL-10"]
[{"$nulls":5},{"$f":"SUM(F2:F109)","v":4904},null,{"$f":"SUM(H2:H109)","v":8336.7999999999956},{"$f":"SUM(I2:I109)","v":1197.4199999999996}]